[Event "Mitropa Cup Women 2019"]
[Site "Radenci"]
[Date "2019.05.29"]
[Round "3.11"]
[White "Choisy, Mathilde"]
[Black "Hund, Sarah"]
[Result "1/2-1/2"]
[ECO "C55"]
[WhiteElo "2113"]
[BlackElo "2016"]
[Annotator "NA"]
[PlyCount "61"]
[EventDate "2019.05.27"]
[EventType "team-tourn"]
[EventCountry "SLO"]
[SourceTitle "playchess.com"]
[Source "ChessBase"]
[SourceQuality "1"]
[WhiteTeam "France"]
[BlackTeam "Switzerland"]
[WhiteTeamCountry "FRA"]
[BlackTeamCountry "SUI"]
[TimeControl "40/5400+30:1800+30"]

1. e4 {[%emt 0:00:00]} e5 {[%emt 0:00:00]} 2. Nf3 {[%emt 0:00:00]} Nc6 {[%emt 0:00:00]} 3. Bc4 {[%emt 0:00:00]} Nf6 {[%emt 0:00:07]} 4. d3 {[%emt 0:00:00]} Be7 $14 {[%emt 0:00:37]} 5. O-O {[%emt 0:00:04]} d6 {[%emt 0:00:48]} 6. a4 {[%emt 0:01:12]} O-O {[%emt 0:01:21]} 7. Re1 {[%emt 0:01:25]} Bg4 {[%emt 0:01:26]} 8. h3 {[%emt 0:00:14]} Bh5 {[%emt 0:01:32]} 9. c3 {[%emt 0:00:23]} Nd7 {[%emt 0:01:58]} 10. a5 {[%emt 0:02:12]} a6 {[%emt 0:05:28]} 11. b4 {[%emt 0:01:24]} Re8 {[%emt 0:03:25]} 12. Nbd2 {[%emt 0:04:27]} Nf8 {[%emt 0:01:17]} 13. Nf1 {[%emt 0:21:33]} Ne6 {[%emt 0:06:49]} 14. Ng3 {[%emt 0:01:33]} Bxf3 {[%emt 0:03:46]} 15. Qxf3 {[%emt 0:00:06]} Bg5 {[%emt 0:00:38]} 16. Nf5 {[%emt 0:11:26]} Bxc1 {[%emt 0:04:10]} 17. Raxc1 {[%emt 0:00:03]} Qf6 {[%emt 0:06:09]} 18. Re3 {[%emt 0:06:50]} Ne7 {[%emt 0:13:45]} 19. Nxe7+ {[%emt 0:05:53]} Qxe7 {[%emt 0:00:54]} 20. Qg4 {[%emt 0:06:20]} Rad8 {[%emt 0:06:16]} 21. Ree1 {[%emt 0:01:58]} c6 {[%emt 0:02:48]} 22. Bxe6 {[%emt 0:00:57]} Qxe6 {[%emt 0:03:22]} 23. Qxe6 {[%emt 0:00:14]} Rxe6 {[%emt 0:00:34]} 24. c4 {[%emt 0:08:27]} Kf8 {[%emt 0:08:20]} 25. Kf1 {[%emt 0:00:06]} f6 {[%emt 0:02:30]} 26. Re2 {[%emt 0:00:40]} d5 {[%emt 0:04:03]} 27. cxd5 {[%emt 0:06:51]} cxd5 {[%emt 0:00:17]} 28. Rc7 {[%emt 0:01:54]} Re7 {[%emt 0:01:38]} 29. Rec2 {[%emt 0:01:25]} dxe4 {[%emt 0:00:51]} 30. dxe4 {[%emt 0:00:06]} Rd4 {[%emt 0:01:47]} 31. Rxe7 {[%emt 0:02:52]} 1/2-1/2

[Event "Mitropa Cup Women 2019"]
[Site "Radenci"]
[Date "2019.05.29"]
[Round "3.12"]
[White "Pellicoro, Nathalie"]
[Black "Djidjeli, Sarah"]
[Result "1/2-1/2"]
[ECO "B26"]
[WhiteElo "1893"]
[BlackElo "2012"]
[Annotator "NA"]
[PlyCount "87"]
[EventDate "2019.05.27"]
[EventType "team-tourn"]
[EventCountry "SLO"]
[SourceTitle "playchess.com"]
[Source "ChessBase"]
[SourceQuality "1"]
[WhiteTeam "Switzerland"]
[BlackTeam "France"]
[WhiteTeamCountry "SUI"]
[BlackTeamCountry "FRA"]
[TimeControl "40/5400+30:1800+30"]

1. e4 {[%emt 0:00:00]} c5 {[%emt 0:00:00]} 2. Nc3 {[%emt 0:00:00]} Nc6 {[%emt 0:00:00]} 3. g3 {[%emt 0:00:00]} g6 {[%emt 0:00:00]} 4. Bg2 {[%emt 0:00:06]} Bg7 {[%emt 0:00:01]} 5. d3 {[%emt 0:00:13]} d6 {[%emt 0:00:55]} 6. Be3 {[%emt 0:00:50]} e5 {[%emt 0:05:20]} 7. Qd2 {[%emt 0:07:11]} Nd4 {[%emt 0:08:56]} 8. Nce2 {[%emt 0:07:27]} Be6 {[%emt 0:10:01]} 9. c3 {[%emt 0:13:11]} Nxe2 {[%emt 0:08:27]} 10. Nxe2 {[%emt 0:00:56]} Qd7 {[%emt 0:01:39]} 11. O-O {[%emt 0:10:10]} Ne7 {[%emt 0:02:59]} 12. Rfd1 {[%emt 0:11:40]} O-O {[%emt 0:06:48]} 13. d4 {[%emt 0:02:04]} Qc7 {[%emt 0:04:09]} 14. dxe5 {[%emt 0:10:19]} dxe5 {[%emt 0:02:55]} 15. Qd6 {[%emt 0:00:13]} Rac8 {[%emt 0:02:12]} 16. f4 {[%emt 0:04:13]} Bh6 {[%emt 0:11:07]} 17. Kf2 {[%emt 0:04:01]} Bg7 {[%emt 0:05:04]} 18. a3 {[%emt 0:07:26]} b6 {[%emt 0:02:14]} 19. a4 {[%emt 0:04:43]} Nc6 {[%emt 0:03:01]} 20. Rd2 {[%emt 0:01:53]} Qb7 {[%emt 0:03:04]} 21. Qd3 {[%emt 0:01:40]} Na5 {[%emt 0:01:33]} 22. Nc1 {[%emt 0:00:47]} Rcd8 {[%emt 0:04:58]} 23. Qxd8 {[%emt 0:00:33]} Rxd8 {[%emt 0:00:20]} 24. Rxd8+ {[%emt 0:00:05]} Bf8 {[%emt 0:00:03]} 25. f5 {[%emt 0:00:49]} Nc6 {[%emt 0:00:40]} 26. Rxf8+ {[%emt 0:01:07]} Kxf8 {[%emt 0:00:03]} 27. fxe6 {[%emt 0:00:06]} fxe6 {[%emt 0:00:18]} 28. Nd3 {[%emt 0:00:54]} Qd7 {[%emt 0:00:30]} 29. Ke2 {[%emt 0:00:35]} c4 {[%emt 0:01:26]} 30. Nf2 {[%emt 0:00:36]} Na5 {[%emt 0:00:50]} 31. Bh6+ {[%emt 0:02:02]} Ke8 {[%emt 0:01:01]} 32. Rd1 {[%emt 0:00:57]} Qxa4 {[%emt 0:00:26]} 33. Bh3 {[%emt 0:02:01]} Qc6 {[%emt 0:02:56]} 34. Kf3 {[%emt 0:01:19]} Nb7 {[%emt 0:01:01]} 35. Bg5 {[%emt 0:01:17]} h5 {[%emt 0:02:16]} 36. Bf6 {[%emt 0:00:40]} Nc5 {[%emt 0:01:48]} 37. Bxe5 {[%emt 0:00:49]} Nd3 {[%emt 0:00:43]} 38. Nxd3 {[%emt 0:00:15]} cxd3 {[%emt 0:00:04]} 39. Rxd3 {[%emt 0:00:02]} Qb5 {[%emt 0:00:16]} 40. Rd6 {[%emt 0:00:00]} g5 {[%emt 0:00:00]} 41. Rxe6+ {[%emt 0:02:00]} Kf7 {[%emt 0:02:05]} 42. Bf5 {[%emt 0:11:04]} Qd3+ {[%emt 0:03:21]} 43. Kf2 {[%emt 0:03:56]} Qd2+ {[%emt 0:00:17]} 44. Kg1 {[%emt 0:01:44]} 1/2-1/2

[Event "Mitropa Cup Women 2019"]
[Site "Radenci"]
[Date "2019.05.29"]
[Round "3.13"]
[White "Unuk, Laura"]
[Black "Ragger, Anna-Christina"]
[Result "1/2-1/2"]
[ECO "D17"]
[WhiteElo "2265"]
[BlackElo "2272"]
[Annotator "ChessBase"]
[PlyCount "171"]
[EventDate "2019.05.27"]
[EventType "team-tourn"]
[EventCountry "SLO"]
[SourceTitle "playchess.com"]
[Source "ChessBase"]
[SourceQuality "1"]
[WhiteTeam "Slovenia"]
[BlackTeam "Austria"]
[WhiteTeamCountry "SLO"]
[BlackTeamCountry "AUT"]
[TimeControl "40/5400+30:1800+30"]

1. d4 {[%emt 0:00:00]} d5 {[%emt 0:00:00]} 2. c4 {[%emt 0:00:00]} c6 {[%emt 0:00:00]} 3. Nf3 {[%emt 0:00:10]} Nf6 {[%emt 0:00:00]} 4. Nc3 {[%emt 0:00:04]} dxc4 {[%emt 0:00:14]} 5. a4 {[%emt 0:00:16]} Bf5 {[%emt 0:00:08]} 6. Ne5 {[%emt 0:00:15]} Nbd7 {[%emt 0:00:41]} 7. Nxc4 {[%emt 0:00:08]} Nb6 {[%emt 0:00:15]} 8. Ne5 {[%emt 0:00:40]} a5 {[%emt 0:00:15]} 9. g3 {[%emt 0:01:32]} e6 {[%emt 0:01:49]} 10. Bg2 {[%emt 0:00:16]} Bb4 {[%emt 0:00:49]} 11. O-O {[%emt 0:00:35]} O-O {[%emt 0:01:51]} 12. e3 {[%emt 0:02:36]} h6 {[%emt 0:05:06]} 13. Qe2 {[%emt 0:00:30]} Bh7 {[%emt 0:00:15]} 14. Rd1 {[%emt 0:11:30]} Nfd7 {[%emt 0:01:24]} 15. Nd3 {[%emt 0:01:15]} Qe7 {[%emt 0:03:44]} 16. e4 {[%emt 0:22:52]} e5 {[%emt 0:04:01]} 17. d5 {[%emt 0:08:48]} Nc5 {[%emt 0:07:41]} 18. Be3 {[%emt 0:04:28]} Nxd3 {[%emt 0:02:05]} 19. Qxd3 {[%emt 0:04:28]} Nxd5 {[%emt 0:18:08]} 20. Nxd5 {[%emt 0:01:10]} cxd5 {[%emt 0:00:06]} 21. Qxd5 {[%emt 0:00:15]} Rfd8 {[%emt 0:00:52]} 22. Qb5 {[%emt 0:02:05]} Bg6 {[%emt 0:01:50]} 23. Bb6 {[%emt 0:08:56]} Rd6 {[%emt 0:02:28]} 24. Rac1 {[%emt 0:06:25]} f6 {[%emt 0:06:47]} 25. Rxd6 {[%emt 0:02:39]} Qxd6 {[%emt 0:01:44]} 26. Bc7 {[%emt 0:14:11]} Qd2 {[%emt 0:09:02]} 27. Rf1 {[%emt 0:00:11]} Rc8 {[%emt 0:01:41]} 28. Bb6 {[%emt 0:07:04]} Bf7 {[%emt 0:02:11]} 29. Bh3 {[%emt 0:00:36]} Rc1 {[%emt 0:01:38]} 30. Be3 {[%emt 0:00:25]} Rxf1+ {[%emt 0:00:06]} 31. Bxf1 {[%emt 0:00:18]} Qxb2 {[%emt 0:01:40]} 32. Qxb7 {[%emt 0:00:04]} Qc2 {[%emt 0:00:56]} 33. Bb5 {[%emt 0:01:13]} Qd1+ {[%emt 0:03:44]} 34. Kg2 {[%emt 0:00:03]} Bh5 {[%emt 0:02:20]} 35. Qc8+ {[%emt 0:00:38]} Kh7 {[%emt 0:00:34]} 36. Bc4 {[%emt 0:00:04]} Bf8 {[%emt 0:02:27]} 37. Qe6 {[%emt 0:01:14]} Qf3+ {[%emt 0:05:47]} 38. Kg1 {[%emt 0:00:03]} Qd1+ {[%emt 0:03:13]} 39. Kg2 {[%emt 0:00:03]} Qf3+ {[%emt 0:00:05]} 40. Kh3 {[%emt 0:00:00]} f5 {[%emt 0:00:00]} 41. Qg8+ {[%emt 0:20:00]} Kg6 {[%emt 0:00:50]} 42. Qf7+ {[%emt 0:09:42]} Kh7 {[%emt 0:00:05]} 43. Qxf5+ {[%emt 0:00:04]} Qxf5+ {[%emt 0:00:10]} 44. exf5 {[%emt 0:00:03]} Bd1 {[%emt 0:02:17]} 45. Bb5 {[%emt 0:00:10]} h5 {[%emt 0:03:59]} 46. Kh4 {[%emt 0:02:30]} Be7+ {[%emt 0:00:54]} 47. Bg5 {[%emt 0:01:13]} Bc5 {[%emt 0:00:07]} 48. Be3 {[%emt 0:01:32]} Be7+ {[%emt 0:01:41]} 49. Bg5 {[%emt 0:00:37]} Bc5 {[%emt 0:00:05]} 50. f6 {[%emt 0:00:32]} Bxf2 {[%emt 0:11:04]} 51. f7 {[%emt 0:00:23]} Bc5 {[%emt 0:00:06]} 52. Bd3+ {[%emt 0:00:11]} g6 {[%emt 0:03:31]} 53. Bd8 {[%emt 0:00:03]} Kg7 {[%emt 0:03:42]} 54. Bxa5 {[%emt 0:00:22]} Bxa4 {[%emt 0:00:42]} 55. Bc3 {[%emt 0:00:58]} Be7+ {[%emt 0:08:41]} 56. Kh3 {[%emt 0:00:14]} Kf6 {[%emt 0:00:23]} 57. Bc4 {[%emt 0:01:10]} Bc6 {[%emt 0:02:26]} 58. Bb2 {[%emt 0:00:44]} g5 {[%emt 0:00:43]} 59. g4 {[%emt 0:00:27]} h4 {[%emt 0:00:28]} 60. Bb3 {[%emt 0:00:26]} Bf3 {[%emt 0:00:27]} 61. Bc4 {[%emt 0:00:22]} Bd6 {[%emt 0:00:38]} 62. Bd5 {[%emt 0:00:44]} Be2 {[%emt 0:01:01]} 63. Kg2 {[%emt 0:00:26]} Bxg4 {[%emt 0:00:05]} 64. Bc3 {[%emt 0:00:22]} Be6 {[%emt 0:00:57]} 65. Be4 {[%emt 0:00:36]} Bxf7 {[%emt 0:00:08]} 66. Kf3 {[%emt 0:00:33]} Bh5+ {[%emt 0:00:09]} 67. Kf2 {[%emt 0:00:34]} Bc5+ {[%emt 0:00:07]} 68. Kg2 {[%emt 0:00:03]} g4 {[%emt 0:00:21]} 69. Ba5 {[%emt 0:00:30]} Kg5 {[%emt 0:00:54]} 70. Bd2+ {[%emt 0:00:07]} Kf6 {[%emt 0:00:05]} 71. Be1 {[%emt 0:00:28]} h3+ {[%emt 0:00:59]} 72. Kg3 {[%emt 0:00:03]} Be3 {[%emt 0:02:27]} 73. Kh4 {[%emt 0:00:04]} Be8 {[%emt 0:00:10]} 74. Kxg4 {[%emt 0:00:40]} Bd7+ {[%emt 0:00:05]} 75. Kh5 {[%emt 0:01:16]} Bf4 {[%emt 0:00:26]} 76. Bf3 {[%emt 0:00:03]} Bxh2 {[%emt 0:00:53]} 77. Bg4 {[%emt 0:00:02]} Bg1 {[%emt 0:05:40]} 78. Bxd7 {[%emt 0:00:19]} h2 {[%emt 0:00:04]} 79. Bh4+ {[%emt 0:00:14]} Kf7 {[%emt 0:00:06]} 80. Bc6 {[%emt 0:00:02]} Ke6 {[%emt 0:00:09]} 81. Kg4 {[%emt 0:00:27]} Kd6 {[%emt 0:00:06]} 82. Bf3 {[%emt 0:01:00]} Kc5 {[%emt 0:00:06]} 83. Kf5 {[%emt 0:00:39]} Kd4 {[%emt 0:00:20]} 84. Bg3 {[%emt 0:00:07]} Kc3 {[%emt 0:01:31]} 85. Bxe5+ {[%emt 0:00:08]} Bd4 {[%emt 0:00:04]} 86. Bxh2 {[%emt 0:00:20]} 1/2-1/2

[Event "Mitropa Cup Women 2019"]
[Site "Radenci"]
[Date "2019.05.29"]
[Round "3.14"]
[White "Newrkla, Katharina"]
[Black "Janzelj, Lara"]
[Result "1/2-1/2"]
[ECO "C41"]
[WhiteElo "2190"]
[BlackElo "2203"]
[Annotator "NA"]
[PlyCount "65"]
[EventDate "2019.05.27"]
[EventType "team-tourn"]
[EventCountry "SLO"]
[SourceTitle "playchess.com"]
[Source "ChessBase"]
[SourceQuality "1"]
[WhiteTeam "Austria"]
[BlackTeam "Slovenia"]
[WhiteTeamCountry "AUT"]
[BlackTeamCountry "SLO"]
[TimeControl "40/5400+30:1800+30"]

1. e4 {[%emt 0:00:00]} d6 {[%emt 0:00:00]} 2. d4 {[%emt 0:00:00]} Nf6 {[%emt 0:00:00]} 3. Nc3 {[%emt 0:00:00]} e5 {[%emt 0:00:00]} 4. Nf3 {[%emt 0:00:00]} Nbd7 {[%emt 0:00:00]} 5. Bc4 {[%emt 0:00:00]} Be7 {[%emt 0:00:00]} 6. O-O {[%emt 0:00:08]} O-O {[%emt 0:00:00]} 7. h3 {[%emt 0:01:03]} c6 {[%emt 0:00:04]} 8. a4 {[%emt 0:00:04]} a5 {[%emt 0:00:23]} 9. Re1 {[%emt 0:00:22]} Nb6 {[%emt 0:00:26]} 10. Ba2 {[%emt 0:00:11]} Nfd7 {[%emt 0:00:09]} 11. Be3 {[%emt 0:00:29]} exd4 {[%emt 0:00:08]} 12. Nxd4 {[%emt 0:00:06]} Nc5 {[%emt 0:00:36]} 13. Qh5 {[%emt 0:02:33]} Ncxa4 $11 {[%emt 0:13:39]} 14. Nxa4 {[%emt 0:00:12]} Nxa4 {[%emt 0:00:04]} 15. Nf3 {[%emt 0:01:24]} Nc5 {[%emt 0:08:14]} 16. Ng5 {[%emt 0:01:37]} Bxg5 {[%emt 0:00:21]} 17. Bxg5 {[%emt 0:00:04]} Qc7 {[%emt 0:00:19]} 18. Bf4 {[%emt 0:01:38]} Nd7 {[%emt 0:03:29]} 19. Qd1 {[%emt 0:02:17]} Ne5 {[%emt 0:01:36]} 20. Qd2 {[%emt 0:04:44]} Ra6 {[%emt 0:07:50]} 21. Re3 {[%emt 0:18:51]} c5 {[%emt 0:02:26]} 22. Rg3 {[%emt 0:10:54]} Ng6 {[%emt 0:06:28]} 23. Bc4 {[%emt 0:02:04]} Rb6 {[%emt 0:04:37]} 24. Rd1 {[%emt 0:08:23]} Be6 {[%emt 0:12:56]} 25. Bxe6 {[%emt 0:03:01]} Nxf4 {[%emt 0:02:05]} 26. Bc4 {[%emt 0:01:21]} Rb4 {[%emt 0:08:45]} 27. Qxf4 {[%emt 0:05:30]} Rxc4 {[%emt 0:00:10]} 28. Rxg7+ {[%emt 0:29:51]} Kxg7 {[%emt 0:00:22]} 29. Qg5+ {[%emt 0:00:04]} Kh8 {[%emt 0:00:03]} 30. Qf6+ {[%emt 0:00:05]} Kg8 {[%emt 0:00:03]} 31. Qg5+ {[%emt 0:00:34]} Kh8 {[%emt 0:00:04]} 32. Qf6+ {[%emt 0:00:30]} Kg8 {[%emt 0:00:04]} 33. Qg5+ {[%emt 0:00:05]} 1/2-1/2

[Event "Mitropa Cup Women 2019"]
[Site "Radenci"]
[Date "2019.05.29"]
[Round "3.15"]
[White "Urh, Zala"]
[Black "Hapala, Elisabeth"]
[Result "0-1"]
[ECO "E36"]
[WhiteElo "2099"]
[BlackElo "2122"]
[Annotator "NA"]
[PlyCount "68"]
[EventDate "2019.05.27"]
[EventType "team-tourn"]
[EventCountry "SLO"]
[SourceTitle "playchess.com"]
[Source "ChessBase"]
[SourceQuality "1"]
[WhiteTeam "Slovenia"]
[BlackTeam "Austria"]
[WhiteTeamCountry "SLO"]
[BlackTeamCountry "AUT"]
[TimeControl "40/5400+30:1800+30"]

1. d4 {[%emt 0:00:00]} Nf6 {[%emt 0:00:00]} 2. c4 {[%emt 0:00:00]} e6 {[%emt 0:00:00]} 3. Nc3 {[%emt 0:00:00]} Bb4 {[%emt 0:00:00]} 4. Qc2 {[%emt 0:00:02]} O-O {[%emt 0:00:00]} 5. a3 {[%emt 0:00:14]} Bxc3+ {[%emt 0:00:00]} 6. Qxc3 {[%emt 0:00:06]} d5 {[%emt 0:00:00]} 7. Nf3 {[%emt 0:01:08]} dxc4 {[%emt 0:00:56]} 8. Qxc4 {[%emt 0:00:18]} b6 {[%emt 0:00:14]} 9. h4 {[%emt 0:00:42]} Ba6 {[%emt 0:01:55]} 10. Qa4 {[%emt 0:01:16]} c5 {[%emt 0:03:39]} 11. dxc5 {[%emt 0:02:59]} bxc5 {[%emt 0:00:07]} 12. Rh3 {[%emt 0:07:24]} Qb6 {[%emt 0:05:26]} 13. Rg3 {[%emt 0:08:15]} Kh8 {[%emt 0:06:35]} 14. Ne5 {[%emt 0:09:22]} c4 {[%emt 0:26:04]} 15. Nxc4 {[%emt 0:06:50]} Bxc4 {[%emt 0:02:15]} 16. Qxc4 {[%emt 0:00:14]} Nbd7 {[%emt 0:02:10]} 17. Be3 {[%emt 0:10:11]} Qxb2 {[%emt 0:03:08]} 18. Bd4 {[%emt 0:00:50]} Qb7 {[%emt 0:03:21]} 19. Rb3 {[%emt 0:04:14]} Qe4 {[%emt 0:04:14]} 20. Rc1 {[%emt 0:05:36]} Qxh4 {[%emt 0:04:34]} 21. e3 {[%emt 0:04:28]} Ne4 {[%emt 0:18:33]} 22. g3 {[%emt 0:05:08]} Qh1 {[%emt 0:01:39]} 23. Qc6 {[%emt 0:12:40]} Qf3 {[%emt 0:01:10]} 24. Rc2 {[%emt 0:03:34]} e5 {[%emt 0:05:25]} 25. Bd3 {[%emt 0:07:28]} Ng5 {[%emt 0:07:31]} 26. Bb2 {[%emt 0:05:50]} e4 {[%emt 0:01:27]} 27. Bf1 {[%emt 0:03:19]} Rad8 {[%emt 0:01:07]} 28. Rd2 {[%emt 0:00:58]} Nb6 {[%emt 0:01:18]} 29. Qc3 {[%emt 0:00:47]} f6 {[%emt 0:00:15]} 30. Qb4 {[%emt 0:00:33]} Qf5 {[%emt 0:00:52]} 31. Rxd8 {[%emt 0:00:24]} Nf3+ {[%emt 0:00:10]} 32. Ke2 {[%emt 0:00:32]} Rxd8 {[%emt 0:00:01]} 33. Bd4 {[%emt 0:00:06]} Qg4 {[%emt 0:00:32]} 34. Qe7 {[%emt 0:00:57]} Nxd4+ {[%emt 0:00:18]} 0-1

[Event "Mitropa Cup Women 2019"]
[Site "Radenci"]
[Date "2019.05.29"]
[Round "3.16"]
[White "Froewis, Annika"]
[Black "Hercog, Nusa"]
[Result "0-1"]
[ECO "B82"]
[WhiteElo "2089"]
[BlackElo "2062"]
[Annotator "NA"]
[PlyCount "106"]
[EventDate "2019.05.27"]
[EventType "team-tourn"]
[EventCountry "SLO"]
[SourceTitle "playchess.com"]
[Source "ChessBase"]
[SourceQuality "1"]
[WhiteTeam "Austria"]
[BlackTeam "Slovenia"]
[WhiteTeamCountry "AUT"]
[BlackTeamCountry "SLO"]
[TimeControl "40/5400+30:1800+30"]

1. e4 {[%emt 0:00:00]} c5 {[%emt 0:00:00]} 2. Nf3 {[%emt 0:00:00]} Nc6 {[%emt 0:00:00]} 3. d4 {[%emt 0:00:00]} cxd4 {[%emt 0:00:00]} 4. Nxd4 {[%emt 0:00:00]} e6 {[%emt 0:00:04]} 5. Nc3 {[%emt 0:00:04]} Qc7 {[%emt 0:00:11]} 6. Be3 {[%emt 0:00:19]} a6 {[%emt 0:00:15]} 7. a3 {[%emt 0:00:08]} Nf6 {[%emt 0:00:56]} 8. f4 {[%emt 0:00:45]} d6 {[%emt 0:06:49]} 9. Qf3 {[%emt 0:04:12]} Be7 {[%emt 0:08:17]} 10. Be2 {[%emt 0:10:36] B82: Sicilian Scheveningen: 6 f4} O-O {[%emt 0:02:34]} 11. O-O-O {[%emt 0:03:26]} Na5 $146 {[%emt 0:11:48]} ({Predecessor:} 11... Rb8 12. g4 Nxd4 13. Bxd4 b5 14. g5 Nd7 15. Rhg1 b4 16. axb4 Rxb4 17. f5 Ne5 {½-½ (52) Jumabayev,R (2602)-Wang,H (2730) Makati 2018}) 12. e5 {[%emt 0:03:19]} Ne8 {[%emt 0:21:28]} 13. Ne4 {[%emt 0:27:16]} d5 {[%emt 0:10:43]} 14. Nd2 {[%emt 0:06:25]} b5 {[%emt 0:03:18]} 15. Bd3 {[%emt 0:13:37]} b4 {[%emt 0:04:28]} 16. axb4 {[%emt 0:01:15]} Bxb4 {[%emt 0:00:34]} 17. Qh5 {[%emt 0:04:00]} g6 {[%emt 0:05:03]} (17... h6 $11) 18. Qh6 {[%emt 0:01:05]} Rb8 {[%emt 0:03:22]} 19. h4 {[%emt 0:06:01]} Nc4 {[%emt 0:10:24]} 20. Bxc4 {[%emt 0:02:37]} dxc4 {[%emt 0:00:02]} 21. Ne4 {[%emt 0:00:14]} f5 {[%emt 0:02:32]} 22. Ng5 {[%emt 0:03:04]} Rf7 {[%emt 0:04:00]} 23. Nxf7 {[%emt 0:01:06]} Qa5 {[%emt 0:01:30]} 24. Nb3 {[%emt 0:07:58]} cxb3 {[%emt 0:00:22]} 25. cxb3 {[%emt 0:00:02]} Bf8 {[%emt 0:02:27]} 26. Qg5 {[%emt 0:00:18]} Kxf7 {[%emt 0:00:05]} 27. h5 {[%emt 0:00:42]} Rxb3 {[%emt 0:00:19]} 28. hxg6+ {[%emt 0:00:21]} hxg6 {[%emt 0:00:03]} 29. Rh7+ {[%emt 0:00:29]} Bg7 {[%emt 0:00:26]} 30. Bd4 {[%emt 0:04:20]} Bb7 {[%emt 0:00:53]} 31. Kc2 {[%emt 0:00:42]} Qa4 {[%emt 0:01:31]} 32. Rxg7+ {[%emt 0:00:46]} Nxg7 {[%emt 0:00:42]} 33. Qf6+ {[%emt 0:00:35]} Kg8 {[%emt 0:00:11]} 34. Qd8+ {[%emt 0:00:31]} Ne8 {[%emt 0:00:18]} 35. Kd2 {[%emt 0:00:18]} Be4 {[%emt 0:00:55]} 36. Ke2 {[%emt 0:00:34]} Qb5+ {[%emt 0:00:24]} 37. Kf2 {[%emt 0:00:18]} Rd3 {[%emt 0:00:39]} 38. Rxd3 {[%emt 0:01:00]} Bxd3 {[%emt 0:00:05]} 39. Qe7 {[%emt 0:00:25]} Ng7 {[%emt 0:00:40]} 40. Kg3 {[%emt 0:00:00]} Qe8 {[%emt 0:00:00]} 41. Qd6 {[%emt 0:03:30]} Bb5 {[%emt 0:03:36]} 42. Bc5 {[%emt 0:04:46]} Nh5+ {[%emt 0:02:10]} 43. Kh4 {[%emt 0:01:44]} Nxf4 {[%emt 0:02:23]} 44. g3 {[%emt 0:01:42]} Nd5 {[%emt 0:01:18]} 45. b4 {[%emt 0:05:28]} Kf7 {[%emt 0:00:45]} 46. Kh3 {[%emt 0:00:44]} g5 {[%emt 0:06:30]} 47. Kg2 {[%emt 0:01:43]} Qh8 {[%emt 0:01:25]} 48. Kg1 {[%emt 0:01:40]} g4 {[%emt 0:00:24]} 49. Bd4 {[%emt 0:02:24]} Qh3 {[%emt 0:07:37]} 50. Bc5 {[%emt 0:01:33]} Qxg3+ {[%emt 0:00:36]} 51. Kh1 {[%emt 0:00:01]} Qh3+ {[%emt 0:00:28]} 52. Kg1 {[%emt 0:00:05]} Qh8 {[%emt 0:00:07]} 53. Bf2 {[%emt 0:00:32]} f4 {[%emt 0:01:32]} 0-1

[Event "Mitropa Cup Women 2019"]
[Site "Radenci"]
[Date "2019.05.30"]
[Round "4.1"]
[White "Georgescu, Lena"]
[Black "Unuk, Laura"]
[Result "0-1"]
[ECO "B13"]
[WhiteElo "2191"]
[BlackElo "2265"]
[Annotator "ChessBase"]
[PlyCount "106"]
[EventDate "2019.05.27"]
[EventType "team-tourn"]
[EventCountry "SLO"]
[SourceTitle "playchess.com"]
[Source "ChessBase"]
[SourceQuality "1"]
[WhiteTeam "Switzerland"]
[BlackTeam "Slovenia"]
[WhiteTeamCountry "SUI"]
[BlackTeamCountry "SLO"]
[TimeControl "40/5400+30:1800+30"]

1. e4 {[%emt 0:00:00]} c6 {[%emt 0:00:00]} 2. d4 {[%emt 0:00:00]} d5 {[%emt 0:00:00]} 3. exd5 {[%emt 0:00:00]} cxd5 {[%emt 0:00:07]} 4. c4 {[%emt 0:00:02]} Nf6 {[%emt 0:03:11]} 5. Nc3 {[%emt 0:00:07]} Nc6 {[%emt 0:02:35]} 6. Bg5 {[%emt 0:00:54]} Qa5 {[%emt 0:15:46]} 7. Bxf6 {[%emt 0:31:32]} exf6 {[%emt 0:01:10]} 8. cxd5 {[%emt 0:01:08]} Bb4 {[%emt 0:01:50]} 9. Qd2 {[%emt 0:11:11]} Ne7 {[%emt 0:05:30]} 10. Bc4 {[%emt 0:05:02]} O-O {[%emt 0:09:34]} 11. Nge2 {[%emt 0:00:50]} Bg4 {[%emt 0:06:49]} 12. f3 {[%emt 0:09:19]} Rac8 {[%emt 0:09:15]} 13. Bb3 {[%emt 0:00:28]} Bf5 {[%emt 0:00:30]} 14. O-O {[%emt 0:01:55]} Rfd8 {[%emt 0:02:16]} 15. a3 {[%emt 0:01:35]} Bd6 {[%emt 0:05:59]} 16. Rac1 {[%emt 0:02:45]} Qc7 {[%emt 0:07:26]} 17. g3 {[%emt 0:00:13]} Qb6 {[%emt 0:00:44]} 18. Ba2 {[%emt 0:01:49]} h5 {[%emt 0:09:08]} 19. Ne4 {[%emt 0:04:51]} Bb8 {[%emt 0:02:13]} 20. Rxc8 {[%emt 0:01:53]} Bxc8 {[%emt 0:00:34]} 21. Rc1 {[%emt 0:02:06]} Qb5 {[%emt 0:03:44]} 22. Bc4 {[%emt 0:05:59]} Qd7 {[%emt 0:00:44]} 23. N2c3 {[%emt 0:09:22]} b6 {[%emt 0:01:00]} 24. Re1 {[%emt 0:02:42]} Bb7 {[%emt 0:05:45]} 25. Kg2 {[%emt 0:03:38]} h4 {[%emt 0:03:49]} 26. d6 {[%emt 0:01:39]} h3+ {[%emt 0:01:21]} 27. Kf2 {[%emt 0:00:34]} Bxd6 {[%emt 0:00:16]} 28. Nxd6 {[%emt 0:01:09]} Qxd6 {[%emt 0:00:06]} 29. Bf1 {[%emt 0:00:42]} Nf5 {[%emt 0:01:05]} 30. Bxh3 {[%emt 0:00:23]} Nxd4 {[%emt 0:00:53]} 31. Bg2 {[%emt 0:00:38]} Qc5 {[%emt 0:01:03]} 32. Qe3 {[%emt 0:00:24]} Qc8 {[%emt 0:00:59]} 33. Rd1 {[%emt 0:00:35]} Ne6 {[%emt 0:00:32]} 34. Rxd8+ {[%emt 0:00:20]} Qxd8 {[%emt 0:00:04]} 35. f4 {[%emt 0:00:41]} Bxg2 {[%emt 0:00:55]} 36. Kxg2 {[%emt 0:00:01]} Nc5 {[%emt 0:00:27]} 37. b4 {[%emt 0:01:20]} Ne6 {[%emt 0:00:21]} 38. Kf2 {[%emt 0:00:16]} Qd7 {[%emt 0:00:44]} 39. Qe2 {[%emt 0:00:51]} Qc6 {[%emt 0:00:28]} 40. Ne4 {[%emt 0:00:00]} f5 {[%emt 0:00:00]} 41. Nd2 {[%emt 0:06:57]} a5 {[%emt 0:03:59]} 42. bxa5 {[%emt 0:02:01]} bxa5 {[%emt 0:00:50]} 43. Nf3 {[%emt 0:02:18]} Qb6+ {[%emt 0:09:13]} 44. Qe3 {[%emt 0:04:34]} Qb2+ {[%emt 0:00:04]} 45. Kg1 {[%emt 0:01:25]} a4 {[%emt 0:04:40]} 46. Ng5 {[%emt 0:03:28]} Qb3 {[%emt 0:00:17]} 47. Kf2 {[%emt 0:00:34]} Nxg5 {[%emt 0:01:35]} 48. fxg5 {[%emt 0:00:41]} Kh7 {[%emt 0:00:05]} 49. h4 {[%emt 0:01:25]} Kg6 {[%emt 0:00:27]} 50. Qe7 {[%emt 0:01:58]} Qa2+ {[%emt 0:01:11]} 51. Kf3 {[%emt 0:01:06]} Kh5 {[%emt 0:01:16]} 52. Qc5 {[%emt 0:03:42]} Qb1 {[%emt 0:02:50]} 53. Qe7 {[%emt 0:02:28]} Qf1+ {[%emt 0:00:14]} 0-1